bitfinex-derivatives/quotes_ETHF0:USTF0_20250501
["timestamp","ask_amount","ask_price","bid_price","bid_amount"]
[1746118595988,0.8062,1863.2,1863.0,12.21322]
[1746118595989,3.56929,1863.2,1863.1,1.0731]
[1746118596584,0.8345,1863.3,1863.1,1.0731]
[1746118596585,3.2078,1863.6,1863.2,1.07304]
[1746118596887,2.4026,1863.5,1863.4,1.07293]
[1746118597087,1.613,1863.5,1863.4,1.07293]
[1746118597886,2.68589,1863.5,1863.4,2.68253]
[1746118600680,2.68589,1863.5,1863.4,1.6096]
[1746118600880,2.68589,1863.5,1863.4,2.68253]
[1746118602888,1.07289,1863.5,1863.4,2.68253]
[1746118603287,2.5574,1863.7,1863.4,2.68253]
[1746118603485,1.07285,1863.6,1863.5,2.79491]
[1746118603682,1.92535,1863.7,1863.6,1.07281]
[1746118603882,1.92535,1863.7,1863.6,2.79491]
[1746118604691,1.07281,1863.6,1863.5,0.86]
[1746118604989,1.07287,1863.5,1863.4,1.7221]
[1746118605185,1.07287,1863.5,1863.4,2.79503]
[1746118605592,2.75617,1863.5,1863.4,1.7221]
[1746118605891,3.59217,1863.5,1863.4,2.79503]
[1746118606092,3.59217,1863.5,1863.4,1.7221]
[1746118606692,3.59217,1863.5,1863.4,2.79503]
[1746118607195,1.07287,1863.5,1863.4,2.79503]
[1746118610493,1.07293,1863.4,1863.3,3.554]
[1746118610695,3.57693,1863.4,1863.3,4.62698]
[1746118611095,3.57693,1863.4,1863.3,6.29468]
[1746118612397,2.71813,1863.4,1863.3,6.29468]
[1746118615096,1.6452,1863.4,1863.1,1.88806]
[1746118615397,1.07304,1863.2,1863.1,2.68746]
[1746118618994,1.07304,1863.2,1863.1,1.6144]
[1746118619296,1.0731,1863.1,1863.0,16.57484975]
[1746118619495,1.0731,1863.1,1863.0,18.23884975]
[1746118619696,1.0731,1863.1,1863.0,21.78327463]
[1746118620598,1.0731,1863.1,1863.0,20.11927463]
[1746118620996,1.0731,1863.1,1863.0,16.56527463]
[1746118621597,1.0731,1863.1,1863.0,19.32843463]
[1746118623197,1.0731,1863.1,1863.0,8.69516]
[1746118624098,1.0731,1863.1,1863.0,2.76316]
[1746118626296,1.0731,1863.1,1863.0,1.69]
[1746118626497,1.0731,1863.1,1863.0,2.76316]
[1746118629903,1.07309,1863.2,1863.1,1.07304]
[1746118630501,1.07316,1863.1,1863.0,1.07311]
[1746118631198,4.0089,1863.5,1863.0,8.551]
[1746118631403,1.07304,1863.3,1863.2,1.07299]
[1746118631702,1.07304,1863.3,1863.2,2.72039]
[1746118633604,1.07304,1863.3,1863.2,9.86066807]
[1746118633801,1.07304,1863.3,1863.2,7.94427807]
[1746118633997,4.28084,1863.3,1863.2,7.14027807]
[1746118634603,5.07014,1863.3,1863.2,7.14027807]
[1746118635504,5.50113947,1863.3,1863.2,7.14027807]
[1746118636006,5.07014,1863.3,1863.2,7.14027807]
[1746118636609,1.0731,1863.1,1863.0,1.07315]
[1746118637309,1.07316,1863.0,1862.9,12.24426807]
[1746118638008,1.07316,1863.0,1862.9,7.96327807]
[1746118638209,1.07316,1863.0,1862.9,7.14027807]
[1746118638511,4.28096,1863.0,1862.9,7.14027807]
[1746118639009,9.28096,1863.0,1862.9,7.14027807]
[1746118639405,10.97656,1863.0,1862.9,7.14027807]
[1746118639706,1.07321,1862.9,1862.8,7.14027807]
[1746118639906,4.41781,1862.9,1862.8,7.14027807]
[1746118640117,9.41781,1862.9,1862.8,7.14027807]
[1746118641418,4.41781,1862.9,1862.8,7.14027807]
[1746118642620,9.41781,1862.9,1862.8,7.14027807]
[1746118642813,8.3446,1862.9,1862.7,9.860248]
[1746118643120,9.44777,1862.8,1862.7,6.889678]
[1746118643322,1.07356,1862.3,1862.2,7.14594573]
[1746118644124,2.68826,1862.3,1862.2,7.14594573]
[1746118645815,2.68826,1862.3,1862.2,8.21956573]
[1746118646426,2.68826,1862.3,1862.2,7.14594573]
[1746118647517,1.07362,1862.2,1862.1,6.23024]
[1746118648930,1.0736,1862.3,1862.2,1.07358]
[1746118649530,1.07362,1862.2,1862.1,6.23023]
[1746118650225,1.07368,1862.1,1862.0,1.6037]
[1746118650431,1.07379,1861.9,1861.8,4.28955]
[1746118650725,4.28159,1861.9,1861.8,4.28955]
[1746118654337,4.28159,1861.9,1861.8,1.6037]
[1746118655025,5.08119,1861.9,1861.8,1.6037]
[1746118657429,6.69191,1861.9,1861.5,0.825]
[1746118657631,1.07396,1861.6,1861.5,1.6765]
[1746118658030,1.07396,1861.6,1861.5,2.75052]
[1746118658339,1.07396,1861.6,1861.5,1.6765]
[1746118658635,1.07396,1861.6,1861.5,2.75041]
[1746118661240,3.2078,1861.7,1861.6,1.07385]
[1746118661442,1.07382,1861.7,1861.6,2.79603]
[1746118664239,1.07382,1861.7,1861.6,1.7222]
[1746118664440,1.07382,1861.7,1861.6,2.79605]
[1746118664742,4.28162,1861.7,1861.6,2.79605]
[1746118665543,4.28162,1861.7,1861.6,1.7222]
[1746118665943,4.28162,1861.7,1861.6,2.79605]
[1746118666252,3.2078,1861.7,1861.4,0.8217]
[1746118666445,1.07391,1861.5,1861.4,2.396]
[1746118666834,1.07391,1861.5,1861.4,3.46997]
[1746118667440,1.07391,1861.5,1861.4,2.396]
[1746118667842,1.07391,1861.5,1861.4,1.5743]
[1746118668148,1.88151,1861.5,1861.4,1.5743]
[1746118668550,1.88151,1861.5,1861.4,2.64827]
[1746118668746,3.2078,1861.6,1861.5,1.07391]
[1746118668747,1.07389,1861.6,1861.5,1.07391]
[1746118668947,1.07389,1861.6,1861.5,1.5743]
[1746118669846,1.07397,1861.4,1861.3,2.51]
[1746118670045,4.28177,1861.4,1861.3,2.51]
[1746118670749,1.07397,1861.4,1861.3,2.51]
[1746118672845,1.07424,1861.0,1860.9,4.28203]
[1746118673051,1.07424,1861.0,1860.9,5.90063]
[1746118674341,1.07424,1861.0,1860.9,4.29163]
[1746118674546,1.07424,1861.0,1860.9,3.2174]
[1746118676147,1.07424,1861.0,1860.9,4.29166]
[1746118676846,1.07424,1861.0,1860.9,3.2174]
[1746118677350,1.07424,1861.0,1860.9,2.4193]
[1746118678451,1.07424,1861.0,1860.9,3.49356]
[1746118678749,1.89074,1861.0,1860.9,2.4193]
[1746118679150,1.07424,1861.0,1860.9,2.4193]
[1746118680648,2.69304,1861.0,1860.9,2.4193]
[1746118680857,2.69304,1861.0,1860.9,1.5988]
[1746118681739,1.07426,1860.9,1860.8,3.2078]
[1746118681944,1.07432,1860.8,1860.7,1.07432]
[1746118684858,1.07437,1860.7,1860.6,9.1398]
[1746118685049,1.07436,1860.8,1860.7,1.07432]
[1746118685446,1.07429,1860.9,1860.8,1.07432]
[1746118685951,1.07437,1860.8,1860.7,1.07432]
[1746118687044,1.07426,1861.0,1860.9,1.0742]
[1746118687444,1.07426,1861.0,1860.9,1.8889]
[1746118687644,1.07416,1861.1,1861.0,1.0742]
[1746118688148,3.2078,1861.5,1861.0,3.2078]
[1746118688350,1.07408,1861.3,1861.2,1.07404]
[1746118688951,1.07408,1861.3,1861.2,4.28184]
[1746118690556,1.07408,1861.3,1861.2,7.82984]
[1746118691755,1.07402,1861.4,1861.3,1.07398]
[1746118692055,1.07388,1861.7,1861.6,1.07383]
[1746118692253,1.0739,1861.6,1861.5,1.07386]
[1746118692455,1.0739,1861.6,1861.5,4.62186]
[1746118692955,1.07385,1861.6,1861.5,4.62186]
[1746118693256,1.07385,1861.7,1861.6,1.07383]
[1746118693459,3.2078,1861.9,1861.6,0.8484]
[1746118693647,4.2815,1861.9,1861.8,1.07374]
[1746118693958,1.07374,1861.8,1861.7,1.91885]
[1746118695561,1.07374,1861.9,1861.8,1.07371]
[1746118699165,1.07385,1861.9,1861.8,1.0738]
[1746118699364,2.5064,1862.0,1861.7,0.8451]
[1746118699663,1.07382,1861.9,1861.8,1.0738]
[1746118699852,1.07382,1861.9,1861.8,2.7888]
[1746118700462,1.07391,1861.7,1861.6,0.8484]
[1746118700664,1.07391,1861.7,1861.6,1.92236]
[1746118700864,1.07396,1861.6,1861.5,10.55399]
[1746118701364,1.07396,1861.6,1861.5,12.22849]
[1746118701863,2.72426,1861.7,1861.6,1.07396]
[1746118703262,1.07396,1861.6,1861.5,12.22848]
[1746118703563,4.43036,1861.6,1861.5,12.22848]
[1746118704665,4.43036,1861.6,1861.5,11.1545]
[1746118704860,4.43036,1861.6,1861.5,9.48]
[1746118705364,4.43036,1861.6,1861.5,10.55402]
[1746118706166,4.43036,1861.6,1861.5,4.62202]
[1746118706669,4.43036,1861.6,1861.5,3.548]
[1746118706868,1.07402,1861.5,1861.4,2.80657]
[1746118707171,2.64432,1861.5,1861.4,1.7325]
[1746118707373,2.64432,1861.5,1861.4,2.80658]
[1746118713268,2.75399,1861.6,1861.5,1.07402]
[1746118713565,1.07395,1861.7,1861.6,1.07391]
[1746118713768,1.07395,1861.7,1861.1,5.932]
[1746118713769,2.68477,1861.7,1861.3,5.932]
[1746118713969,1.07407,1861.5,1861.4,1.07405]
[1746118714159,1.07407,1861.5,1861.4,2.67505]
[1746118714359,3.50427,1861.5,1861.4,2.67505]
[1746118720574,3.50427,1861.5,1861.4,1.601]
[1746118721276,3.50427,1861.5,1861.4,2.67508]
[1746118723270,2.4302,1861.5,1861.4,5.88288]
[1746118723576,1.87702,1861.5,1861.4,2.67508]
[1746118726673,2.68451,1861.9,1861.4,7.533]
[1746118726870,1.07392,1861.8,1861.7,1.07387]
[1746118727175,1.07391,1861.7,1861.6,1.92924]
[1746118727369,1.07391,1861.7,1861.6,2.79234]
[1746118727769,1.07391,1861.7,1861.6,0.8631]
[1746118727974,1.07391,1861.7,1861.6,1.93706]
[1746118728175,1.07391,1861.7,1861.6,2.471]
[1746118728776,2.71401,1861.7,1861.6,2.471]
[1746118729078,1.6401,1861.7,1861.4,11.01803]
[1746118729275,1.07402,1861.5,1861.4,13.48903]
[1746118729576,1.07402,1861.5,1861.4,11.88113]
[1746118730180,1.07402,1861.5,1861.4,10.8071]
[1746118730379,1.07402,1861.5,1861.4,8.67338]
[1746118731182,1.07402,1861.5,1861.4,7.5993]
[1746118731380,1.07402,1861.5,1861.4,8.67338]
[1746118732281,1.07402,1861.5,1861.4,5.932]
[1746118732580,1.07419,1861.2,1861.1,1.91065]
[1746118733181,1.07419,1861.2,1861.1,0.8364]
[1746118733382,1.07419,1861.2,1861.1,1.91065]
[1746118733585,1.07419,1861.2,1861.1,0.8364]
[1746118733884,1.07419,1861.2,1861.1,1.91065]
[1746118734189,1.07419,1861.2,1861.1,0.8364]
[1746118734489,1.07419,1861.2,1861.1,1.91065]
[1746118738985,1.07419,1861.2,1861.1,0.8364]
[1746118739385,2.67009,1861.2,1861.1,0.8364]
[1746118740894,2.67009,1861.2,1861.1,2.5142]
[1746118742689,2.67009,1861.2,1861.1,3.58845]
[1746118742982,1.07419,1861.2,1861.1,3.58845]
[1746118743180,1.07415,1861.4,1861.3,1.0741]
[1746118743879,1.07415,1861.4,1861.3,2.7651]
[1746118744090,1.07415,1861.4,1861.3,1.691]
[1746118744994,1.07415,1861.4,1861.1,7.8426]
[1746118744995,1.07419,1861.2,1861.1,7.8426]
[1746118745190,1.07419,1861.2,1861.1,9.5336]
[1746118746797,1.07419,1861.2,1861.1,8.4594]
[1746118747093,1.07419,1861.2,1861.1,9.53365]
[1746118747991,1.91849,1861.2,1861.1,9.53365]
[1746118748202,1.91849,1861.2,1861.1,8.4594]
[1746118748490,3.48579,1861.2,1861.1,8.4594]
[1746118750293,3.48579,1861.2,1861.1,2.5274]
[1746118751186,1.07431,1861.0,1860.9,10.72215588]
[1746118751887,2.66281,1861.0,1860.9,10.72215588]
[1746118753791,3.09206075,1861.0,1860.9,10.72215588]
[1746118755893,8.09206075,1861.0,1860.9,10.72215588]
[1746118756196,1.07448,1860.7,1860.6,5.932]
[1746118756398,1.07454,1860.6,1860.5,12.33245588]
[1746118758092,1.86464,1860.6,1860.5,12.33245588]
[1746118758697,5.07244,1860.6,1860.5,12.33245588]
[1746118760604,5.07244,1860.6,1860.5,10.72215588]
[1746118760900,1.07466,1860.4,1860.3,4.48401]
[1746118761100,1.07466,1860.4,1860.3,2.77611]
[1746118761798,1.07466,1860.4,1860.3,1.7014]
[1746118762202,1.08898871,1860.4,1860.3,1.7014]
[1746118762593,1.08898871,1860.4,1860.3,0.8413]
[1746118762795,1.08898871,1860.4,1860.3,1.91601]
[1746118765214,1.08898871,1860.4,1860.3,0.8413]
[1746118767018,0.01432871,1860.4,1860.1,4.4088]
[1746118767319,1.07466,1860.4,1860.3,0.83847129]
[1746118768916,1.07477,1860.2,1860.1,0.8678]
[1746118770419,1.07477,1860.2,1860.1,1.7045]
[1746118772313,2.68694,1860.2,1859.9,4.28271]
[1746118772610,1.07489,1860.0,1859.9,3.2078]
[1746118772808,1.07498,1859.9,1859.8,1.07498]
[1746118773017,1.07498,1859.9,1859.8,2.70868]
[1746118773516,1.07498,1859.9,1859.8,1.07498]
[1746118773822,1.075,1859.8,1859.7,1.07506]
[1746118774019,1.075,1859.9,1859.8,1.07497]
[1746118774412,1.07493,1860.0,1859.9,1.07491]
[1746118774917,1.07486,1860.1,1860.0,1.07483]
[1746118775120,1.07486,1860.1,1860.0,2.68663]
[1746118777123,3.49102,1860.5,1860.0,1.6118]
[1746118777321,1.07476,1860.3,1860.2,1.07471]
[1746118777624,1.07476,1860.3,1860.2,1.07477]
[1746118777818,1.07477,1860.2,1860.1,4.28263]
[1746118779922,1.07477,1860.2,1860.1,5.86343]
[1746118781823,1.07477,1860.2,1860.1,2.65563]
[1746118784026,1.10408582,1860.2,1860.1,2.65563]
[1746118785919,1.12268347,1860.2,1860.1,2.65563]
[1746118786421,1.11760203,1860.2,1860.1,2.65563]
[1746118790026,1.11760203,1860.2,1860.1,3.48663]
[1746118792930,1.11760203,1860.2,1860.1,6.69443]
[1746118796334,0.04791347,1860.2,1860.1,6.69443]
[1746118796737,1.12268347,1860.2,1860.1,6.69443]
[1746118797336,1.12268347,1860.2,1860.1,3.48663]
[1746118798841,1.12268347,1860.2,1860.1,10.63829026]
[1746118800438,1.12268347,1860.2,1860.1,9.80729026]
[1746118800639,1.96278347,1860.2,1860.1,9.80729026]
[1746118801042,0.04791347,1860.2,1860.1,13.01509026]
[1746118801234,1.0747,1860.4,1860.3,1.07463]
[1746118801436,1.0747,1860.4,1860.3,1.94311]
[1746118801733,1.07477,1860.2,1860.1,7.15166026]
[1746118802043,4.28257,1860.2,1860.1,7.15166026]
[1746118802437,6.01817,1860.2,1860.1,7.15166026]
[1746118803439,1.07477,1860.2,1860.1,8.22649026]
[1746118803644,1.07477,1860.2,1860.1,10.69849026]
[1746118805445,2.64267,1860.2,1860.1,9.83089026]
[1746118805646,2.64267,1860.2,1860.1,18.23249715]
[1746118807147,1.5679,1860.2,1860.1,18.23249715]
[1746118807350,2.73877,1860.3,1860.2,1.07477]
[1746118807647,2.76954,1860.5,1860.2,1.6926]
[1746118807850,4.48494,1860.5,1860.4,1.07466]
[1746118808240,4.48494,1860.5,1860.4,2.76726]
[1746118808547,4.48494,1860.5,1860.4,1.6926]
[1746118808945,3.2078,1860.6,1860.4,6.6926]
[1746118809150,4.2824,1860.6,1860.5,1.0746]
[1746118809647,1.0746,1860.6,1860.5,2.7672]
[1746118810452,1.9228,1860.6,1860.5,2.7672]
[1746118810745,1.6949,1860.7,1860.6,1.07454]
[1746118810950,2.76943,1860.7,1860.6,2.76554]
[1746118812250,3.57785671,1860.8,1860.7,1.07448]
[1746118812449,1.07443,1860.8,1860.7,7.63008]
[1746118812638,0.8424,1860.8,1860.7,4.42228]
[1746118813752,2.71817,1860.9,1860.8,1.07443]
[1746118813943,4.41645671,1861.0,1860.8,1.5651]
[1746118814150,4.41645671,1861.0,1860.9,1.07437]
[1746118814347,5.49076671,1861.0,1860.9,1.07437]
[1746118814747,4.41645671,1861.0,1860.9,1.07437]
[1746118814942,3.57785671,1861.0,1860.9,1.07437]
[1746118815150,4.65216671,1861.0,1860.9,1.07437]
[1746118815349,1.07437,1860.9,1860.8,2.63947]
[1746118815652,4.38947,1860.9,1860.8,2.63953]
[1746118817654,1.07443,1860.8,1860.7,16.61918794]
[1746118817955,2.69893,1860.8,1860.7,16.61918794]
[1746118818155,2.69893,1860.8,1860.7,18.24738794]
[1746118818448,2.69893,1860.8,1860.7,15.54473794]
[1746118818756,1.07454,1860.6,1860.5,10.66412953]
[1746118818941,12.81734,1860.6,1860.5,6.8601704]
[1746118819653,12.81734,1860.6,1860.5,4.3095704]
[1746118820059,13.66504,1860.6,1860.5,4.3095704]
[1746118821053,9.28234,1860.6,1860.5,4.3095704]
[1746118821255,1.07454,1860.6,1860.5,5.3841404]
[1746118822059,1.07454,1860.6,1860.5,1.07457]
[1746118823157,4.38193,1860.7,1860.6,1.07454]
[1746118823354,1.07458,1860.6,1860.5,1.07455]
[1746118824057,1.07458,1860.6,1860.5,2.70215]
[1746118824259,4.38192,1860.7,1860.6,1.07454]
[1746118824457,4.38192,1860.7,1860.6,3.48364]
[1746118824660,4.38192,1860.7,1860.6,2.4091]
[1746118825963,4.38192,1860.7,1860.6,3.48364]
[1746118826267,1.86592,1860.7,1860.6,3.48364]
[1746118828770,1.86592,1860.7,1860.6,2.4091]
[1746118828970,1.0746,1860.5,1860.4,10.21444]
[1746118829172,1.0746,1860.5,1860.4,11.90314]
[1746118829670,1.0746,1860.5,1860.4,10.8285]
[1746118830069,2.7365,1860.5,1860.4,10.8285]
[1746118830670,5.9443,1860.5,1860.4,7.6207]
[1746118832371,5.9443,1860.5,1860.4,1.6887]
[1746118832865,5.9443,1860.5,1860.4,2.76336]
[1746118833072,2.7365,1860.5,1860.4,2.76336]
[1746118833370,2.7365,1860.5,1860.4,1.6887]
[1746118833576,2.7365,1860.5,1860.4,2.76336]
[1746118834771,2.7365,1860.5,1860.4,1.6887]
[1746118835976,2.7365,1860.5,1860.4,2.76336]
[1746118836680,2.7365,1860.5,1860.4,1.6887]
[1746118840683,1.0746,1860.5,1860.4,1.6887]
[1746118844080,3.57785671,1860.9,1860.7,1.07443]
[1746118844282,4.65222671,1860.9,1860.8,2.4367]
[1746118845777,7.86002671,1860.9,1860.8,2.4367]
[1746118845982,1.0746,1860.5,1860.4,10.54063]
[1746118846285,1.0746,1860.5,1860.4,12.26653]
[1746118847382,1.0746,1860.5,1860.4,13.92103]
[1746118847684,1.0746,1860.5,1860.4,10.38703]
[1746118848178,3.534,1861.1,1860.4,10.38703]
[1746118848179,5.89363,1861.0,1860.4,9.3124]
[1746118848481,1.07454,1860.6,1860.5,1.7259]
[1746118848787,1.07458,1860.6,1860.4,0.8459]
[1746118849085,1.07458,1860.6,1860.5,2.8005]
[1746118849289,1.07453,1860.7,1860.5,1.7259]
[1746118849486,1.07445,1860.8,1860.6,1.6519]
[1746118849681,1.07445,1860.8,1860.7,1.6908]
[1746118849984,1.07445,1860.8,1860.7,2.76528]
[1746118850180,1.07445,1860.8,1860.7,2.5013]
[1746118850384,1.07445,1860.8,1860.7,1.6519]
[1746118851686,2.70305,1860.8,1860.7,1.6519]
[1746118852381,2.68638,1860.6,1860.1,10.54081]
[1746118852581,1.07471,1860.3,1860.2,2.4041]
[1746118852981,2.67911,1860.3,1860.2,2.4041]
[1746118855094,1.07477,1860.2,1860.1,5.932]
[1746118855291,6.84987,1860.2,1860.1,1.5736]
[1746118856785,3.64207,1860.2,1860.1,1.5736]
[1746118857495,6.84987,1860.2,1860.1,1.5736]
[1746118858493,6.84987,1860.2,1860.0,0.8132]
[1746118858494,1.07489,1860.0,1859.9,5.932]
[1746118858689,1.07489,1860.0,1859.9,1.5672]
[1746118859192,1.07495,1859.9,1859.8,5.1012]
[1746118859587,1.075,1859.8,1859.7,5.932]
[1746118859787,1.07505,1859.8,1859.7,1.07504]
[1746118860085,1.07508,1859.7,1859.6,1.07507]
[1746118860284,1.07505,1859.8,1859.7,1.07504]
[1746118861794,4.28262,1860.2,1860.1,1.07483]
[1746118861989,1.0748,1860.2,1860.1,1.07477]
[1746118862293,1.07481,1860.2,1860.1,1.07478]
[1746118862794,1.07481,1860.2,1860.1,0.8045]
[1746118863291,1.07481,1860.2,1860.1,2.5363]
[1746118863994,1.07481,1860.2,1860.1,1.7318]
[1746118864193,1.90901,1860.2,1860.1,1.7318]
[1746118864495,1.07489,1860.0,1859.9,5.932]
[1746118864694,1.07489,1860.0,1859.9,6.7416]
[1746118865600,1.07489,1860.0,1859.9,5.932]
[1746118865895,2.70389,1860.0,1859.9,7.5527]
[1746118866299,5.91169,1860.0,1859.9,7.5527]
[1746118866495,2.70389,1860.0,1859.9,7.5527]
[1746118866998,5.91169,1860.0,1859.9,7.5527]
[1746118867495,0.8339,1860.1,1859.9,1.6207]
[1746118867798,11.21036,1860.8,1860.0,4.41291]
[1746118867799,5.89428,1860.6,1860.0,4.41291]
[1746118867998,1.07477,1860.3,1860.2,1.07474]
[1746118868498,1.07477,1860.2,1860.1,2.80051]
[1746118871399,1.07477,1860.2,1860.1,1.7257]
[1746118871599,1.07489,1860.0,1859.9,1.6675]
[1746118872097,1.07489,1860.0,1859.9,2.74245]
[1746118872498,1.07489,1860.0,1859.9,1.6675]
[1746118872699,1.07495,1859.9,1859.8,0.8317]
[1746118872888,1.07495,1859.9,1859.8,3.5742]
[1746118873395,0.811,1860.3,1860.0,2.68723]
[1746118873600,1.0747,1860.4,1860.3,1.07467]
[1746118873796,1.07451,1860.7,1860.6,1.07448]
[1746118874002,1.07444,1860.8,1860.7,1.07442]
[1746118874215,1.07444,1860.8,1860.7,1.07448]
[1746118874700,1.0744,1860.9,1860.8,1.07442]
[1746118874902,1.0744,1860.9,1860.8,2.74602]
[1746118876205,1.0744,1860.9,1860.8,1.6716]
[1746118876999,2.7485,1860.9,1860.8,1.6716]
[1746118877603,2.7485,1860.9,1860.8,2.74603]
[1746118877901,2.7485,1860.9,1860.8,1.6716]
[1746118878402,2.7485,1860.9,1860.8,2.74603]
[1746118878601,2.7485,1860.9,1860.8,1.6716]
[1746118879802,1.0744,1860.9,1860.8,2.74603]
[1746118880500,1.86384,1861.0,1860.9,1.07437]
[1746118880700,1.86384,1861.0,1860.9,1.693]
[1746118881702,1.6555,1861.1,1860.9,1.693]
[1746118881703,1.07428,1861.1,1861.0,1.07431]
[1746118881903,1.07428,1861.1,1861.0,1.89261]
[1746118882205,1.07415,1861.3,1861.2,1.07416]
[1746118882504,1.07419,1861.2,1861.1,3.59623]
[1746118884708,1.07419,1861.2,1861.1,7.12923]
[1746118885107,1.07419,1861.2,1861.1,6.055]
[1746118885502,1.07419,1861.2,1861.1,7.12925]
[1746118888410,1.074,1861.6,1861.5,1.07398]
[1746118889202,1.07402,1861.5,1861.4,3.62234]
[1746118889401,1.07402,1861.6,1861.5,1.074]
[1746118889603,2.6853,1861.4,1860.9,3.2078]
[1746118889907,1.07424,1861.2,1861.1,1.07423]
[1746118892412,1.07424,1861.2,1861.1,1.86623]
[1746118894000,3.2078,1861.4,1861.3,1.07414]
[1746118894206,1.07408,1861.4,1861.3,1.07414]
[1746118894405,1.07419,1861.3,1861.2,1.07415]
[1746118895312,1.07419,1861.2,1861.1,5.39923]
[1746118895701,14.42629,1861.2,1860.1,6.7408]
[1746118895901,3.2078,1860.5,1860.2,0.7862]
[1746118896113,1.07467,1860.4,1860.3,1.07468]
[1746118896313,1.07471,1860.3,1860.2,1.86092]
[1746118896611,1.07467,1860.4,1860.3,1.07471]
[1746118898109,1.07464,1860.5,1860.4,1.07463]
[1746118898608,0.7945,1860.6,1860.5,1.0746]
[1746118899313,1.86904,1860.6,1860.5,1.0746]
[1746118900313,0.7945,1860.6,1860.5,1.0746]
[1746118900707,1.86904,1860.6,1860.5,1.0746]
[1746118901104,0.7945,1860.6,1860.5,1.0746]
[1746118901307,1.86904,1860.6,1860.5,2.8103]
[1746118906113,1.86904,1860.6,1860.5,1.7357]
[1746118906320,1.0746,1860.5,1860.4,9.465]
[1746118906517,5.0682,1860.5,1860.4,9.465]
[1746118906721,3.4689,1860.5,1860.4,9.465]
[1746118906917,3.4689,1860.5,1860.4,11.1253]
[1746118908221,3.4689,1860.5,1860.4,12.19996]
[1746118910721,3.4689,1860.5,1860.4,11.1253]
[1746118910921,3.4689,1860.5,1860.4,12.19996]
[1746118911323,3.4689,1860.5,1860.4,6.26796]
[1746118913523,1.86909,1860.6,1860.5,1.0746]
[1746118913720,1.86909,1860.6,1860.5,3.6085]
[1746118915025,1.86909,1860.6,1860.5,2.5339]
[1746118915323,3.58709,1860.6,1860.5,2.7739]
[1746118917122,3.2078,1860.7,1860.5,1.6993]
[1746118917426,1.07429,1861.1,1861.0,1.07424]
[1746118917622,1.07429,1861.1,1861.0,3.59084]
[1746118917825,1.679,1861.2,1861.1,1.07425]
[1746118918025,5.11959,1861.3,1861.2,1.07419]
[1746118918225,1.91179,1861.3,1861.2,1.07419]
[1746118919327,7.13155122,1861.3,1861.2,1.07419]
[1746118919528,5.48055122,1861.3,1861.2,1.07419]
[1746118919932,17.87016122,1861.3,1860.4,1.6355]
[1746118920133,1.0746,1860.5,1860.4,1.6355]
[1746118920431,1.0746,1860.5,1860.4,2.71016]
[1746118921329,1.0746,1860.5,1860.4,1.6355]
[1746118921526,2.7256,1860.5,1860.4,1.6355]
[1746118921729,1.07466,1860.4,1860.3,4.67971]
[1746118921932,2.72566,1860.4,1860.3,4.67971]
[1746118922330,1.07466,1860.4,1860.3,4.67971]
[1746118924434,1.07466,1860.4,1860.3,3.605]
[1746118924628,1.07466,1860.4,1860.3,4.67971]
[1746118924830,1.07466,1860.4,1860.3,6.40101]
[1746118927336,1.5945,1860.6,1860.3,5.3263]
[1746118927526,5.95365,1860.7,1860.6,1.07454]
[1746118928229,3.2078,1860.7,1860.6,1.07454]
[1746118928434,1.6801,1860.9,1860.7,1.07448]
[1746118928435,1.07446,1860.8,1860.7,1.07448]
[1746118928829,1.89681,1860.9,1860.8,1.07443]
[1746118929028,1.89681,1860.9,1860.8,2.65373]
[1746118931738,1.07434,1861.0,1860.9,1.07437]
[1746118931931,1.07434,1861.0,1860.9,2.78237]
[1746118932535,0.8571,1861.3,1861.0,2.68578]
[1746118932738,3.56876122,1861.4,1861.3,1.07414]
[1746118933141,4.64284122,1861.4,1861.3,1.07414]
[1746118933346,1.07408,1861.4,1861.3,3.58034]
[1746118934033,1.07407,1861.5,1861.4,1.07408]
[1746118934235,7.85057122,1861.6,1861.5,1.07402]
[1746118934435,15.39156122,1861.6,1860.4,3.2078]
[1746118934627,1.07451,1860.7,1860.6,1.07448]
[1746118934834,1.07456,1860.6,1860.5,1.07456]
[1746118935342,1.07453,1860.7,1860.6,1.07451]
[1746118935943,1.07446,1860.8,1860.7,1.07448]
[1746118936235,3.48341,1861.0,1860.9,1.07434]
[1746118936236,1.07437,1861.0,1860.9,1.07434]
[1746118936433,4.0009,1861.1,1860.8,2.79768]
[1746118936434,1.07437,1860.9,1860.8,2.79768]
[1746118937437,3.2078,1861.0,1860.8,2.79768]
[1746118937638,3.2078,1861.0,1860.9,1.5764]
[1746118937639,1.07435,1861.0,1860.9,1.5764]
[1746118937839,1.07435,1861.0,1860.9,2.65077]
[1746118938039,1.07435,1861.0,1860.9,1.5764]
[1746118938243,1.07435,1861.0,1860.9,2.65077]
[1746118938430,3.2078,1861.1,1861.0,1.07431]
[1746118938637,1.07425,1861.2,1861.1,1.07423]
[1746118938837,1.07425,1861.1,1861.0,2.65067]
[1746118939143,1.07425,1861.1,1860.5,1.07457]
[1746118939144,1.0746,1860.6,1860.5,1.07457]
[1746118939537,1.0746,1860.6,1860.5,2.65097]
[1746118939734,1.0746,1860.6,1860.5,1.5764]
[1746118939940,1.0746,1860.6,1860.5,8.68148139]
[1746118940444,1.0746,1860.6,1860.5,9.75608139]
[1746118942242,1.0746,1860.6,1860.5,8.68148139]
[1746118943039,1.0746,1860.6,1860.5,9.75608139]
[1746118943237,1.0746,1860.6,1860.5,8.68148139]